bitfinex-derivatives/quotes_SOLF0:USTF0_20250901
["timestamp","ask_amount","ask_price","bid_price","bid_amount"]
[1756741795070,0.03257198,198.25,198.21,7.83]
[1756741795484,0.03257198,198.25,198.2,4.5403]
[1756741795678,0.03257198,198.25,198.21,7.83]
[1756741795880,0.03257198,198.25,198.2,4.5403]
[1756741796476,0.03257198,198.25,198.21,7.83]
[1756741796681,0.13257198,198.25,198.21,7.83]
[1756741797977,0.03257198,198.25,198.17,7.83]
[1756741799980,4.5399,198.23,198.17,7.83]
[1756741800383,0.03257198,198.25,198.17,7.83]
[1756741800582,0.03257198,198.25,198.17,12.371]
[1756741800777,0.03257198,198.25,198.16,7.83]
[1756741801787,0.03257198,198.25,198.22,7.83]
[1756741801984,0.03257198,198.25,198.15,4.18737737]
[1756741802281,0.03257198,198.25,198.18,7.83]
[1756741802582,125.34,198.26,198.18,7.83]
[1756741802880,128.48131687,198.28,198.18,4.5408]
[1756741803087,125.64,198.28,198.2,7.83]
[1756741803285,0.1,198.27,198.2,7.83]
[1756741803494,0.03270097,198.25,198.2,7.83]
[1756741803986,0.03270097,198.25,198.2,4.5404]
[1756741805182,0.03270097,198.25,198.21,7.83]
[1756741805380,0.03270097,198.25,198.18,7.83]
[1756741805687,0.03270097,198.25,197.96,1332.1457]
[1756741805688,0.03270097,198.25,198.21,7.83]
[1756741805882,125.78,198.31,198.23,4.5396]
[1756741806083,125.78,198.31,198.24,7.83]
[1756741806396,2.84131687,198.3,198.21,4.5401]
[1756741806685,2.84131687,198.3,198.21,12.3701]
[1756741807484,2.84131687,198.27,198.21,7.83]
[1756741807689,0.1,198.26,198.18,7.83]
[1756741808892,0.03293949,198.24,198.18,7.83]
[1756741809288,37.49,198.23,198.15,12.5915]
[1756741809492,37.49,198.23,198.15,8.05]
[1756741811995,0.11,198.23,198.15,12.5915]
[1756741812293,61.33,198.23,198.15,12.5915]
[1756741812494,61.33,198.23,198.15,8.05]
[1756741813092,4.5403,198.21,198.15,8.05]
[1756741814187,70.7128,198.28,198.16,8.05]
[1756741814395,128.38131687,198.27,198.16,8.05]
[1756741814596,0.03223477,198.2,198.16,8.05]
[1756741814791,0.03223477,198.2,198.19,8.05]
[1756741815294,0.03223477,198.2,198.17,8.05]
[1756741815486,0.03223477,198.2,198.16,4.5412]
[1756741815893,0.03223477,198.2,198.17,8.05]
[1756741816094,0.03223477,198.2,198.16,4.5412]
[1756741816095,4.57283477,198.2,198.16,8.05]
[1756741816303,4.57283477,198.2,198.15,8.05]
[1756741816595,0.03223477,198.2,198.15,8.05]
[1756741816996,0.03223477,198.2,198.14,8.72907737]
[1756741817195,0.03223477,198.2,198.15,8.05]
[1756741817395,0.03223477,198.2,198.14,8.72907737]
[1756741817598,0.03223477,198.2,198.14,16.77907737]
[1756741817892,4.57273477,198.2,198.14,16.77907737]
[1756741818099,0.03223477,198.2,198.14,8.05]
[1756741818299,0.03223477,198.2,198.12,4.18737737]
[1756741818499,0.03223477,198.2,198.13,8.05]
[1756741818701,125.51223477,198.2,198.13,8.05]
[1756741819004,2.95131687,198.14,198.08,8.05]
[1756741819597,43.33131687,198.14,198.08,8.05]
[1756741820200,43.33131687,198.14,198.05,23.19622509]
[1756741820201,0.5,198.13,198.05,23.19622509]
[1756741820499,0.11,198.12,198.05,23.19622509]
[1756741821305,0.03177863,198.13,198.05,23.19622509]
[1756741821800,0.14177863,198.13,198.05,23.19622509]
[1756741822499,0.03177863,198.13,198.06,8.05]
[1756741823306,0.03177863,198.13,198.06,10.89131687]
[1756741823609,0.03177863,198.13,198.05,23.19622509]
[1756741823610,0.03177863,198.13,198.09,2.84131687]
[1756741824208,0.03177863,198.13,198.1,8.05]
[1756741824609,339.08,198.21,198.03,35.24]
[1756741824810,339.08,198.21,198.12,7.38341687]
[1756741826617,465.22,198.21,198.14,8.05]
[1756741827011,4.54,198.22,198.14,8.05]
[1756741827207,126.08,198.23,198.16,8.05]
[1756741828111,126.08,198.23,198.18,0.03343523]
[1756741828310,7.71,198.2,198.18,0.03343523]
[1756741828510,7.71,198.21,198.18,0.03343523]
[1756741828909,196.699,198.23,198.07,8.05]
[1756741828910,7.71,198.16,198.07,8.05]
[1756741829115,128.96131687,198.15,198.07,8.05]
[1756741830313,0.0336856,198.13,198.03,4.5443]
[1756741830512,7.7436856,198.13,198.02,10.89131687]
[1756741830911,7.7436856,198.13,198.03,8.05]
[1756741831214,7.7436856,198.13,198.03,10.89131687]
[1756741831417,0.0336856,198.13,198.07,8.05]
[1756741831611,0.0336856,198.13,198.1,8.05]
[1756741831916,126.18,198.16,198.11,8.05]
[1756741832113,7.71,198.19,198.1,10.89131687]
[1756741832312,7.71,198.19,198.1,8.05]
[1756741832512,0.03344078,198.15,198.09,2.84131687]
[1756741832713,0.03344078,198.15,198.12,2.84131687]
[1756741832917,0.03344078,198.15,198.13,8.05]
[1756741833220,0.96,198.21,198.13,8.05]
[1756741833616,10.55131687,198.23,198.13,8.05]
[1756741833818,40.76,198.22,198.13,8.05]
[1756741834315,0.03250659,198.2,198.13,12.592]
[1756741834815,7.74250659,198.2,198.11,2.84131687]
[1756741835519,7.71,198.16,198.05,8.05]
[1756741835715,2.84131687,198.14,198.05,8.05]
[1756741835915,7.71,198.13,198.05,8.05]
[1756741836319,0.03349089,198.11,198.05,8.05]
[1756741837615,0.03349089,198.11,198.05,12.5939]
[1756741837815,0.03349089,198.11,198.05,12.1539]
[1756741838719,0.03349089,198.11,198.05,7.61]
[1756741839310,0.03349089,198.11,198.07,2.84131687]
[1756741839815,0.03349089,198.11,198.08,7.61]
[1756741840218,0.03349089,198.11,198.1,14.99401687]
[1756741840421,7.47,198.19,198.1,10.45131687]
[1756741841020,12.0108,198.19,198.12,4.5421]
[1756741841223,7.47,198.19,198.1,10.45131687]
[1756741842216,2.84131687,198.22,198.11,7.61]
[1756741842519,129.10131687,198.22,198.11,7.61]
[1756741842717,7.47,198.21,198.11,7.61]
[1756741843023,70.63,198.2,198.11,7.61]
[1756741843320,78.1079,198.18,198.07,2.84131687]
[1756741843521,78.1079,198.18,198.06,7.61]
[1756741843522,2.84131687,198.16,198.06,7.61]
[1756741843722,7.47,198.15,198.06,7.61]
[1756741843919,2.84131687,198.16,198.08,7.61]
[1756741844119,2.84131687,198.16,198.09,0.03306973]
[1756741844314,2.84131687,198.19,198.1,7.61]
[1756741844621,70.79131687,198.24,198.14,7.61]
[1756741845114,0.87827777,198.26,198.18,7.61]
[1756741845319,346.65,198.3,198.19,2.84131687]
[1756741845623,2.84131687,198.23,198.17,0.0319967]
[1756741845924,2.84131687,198.2,198.12,7.61]
[1756741846117,7.47,198.19,198.07,14.99471687]
[1756741846325,2.84131687,198.17,198.07,14.99471687]
[1756741846523,7.47,198.16,198.12,0.03243577]
[1756741847023,7.47,198.15,198.12,0.03243577]
[1756741847220,2.84131687,198.13,198.12,0.03243577]
[1756741847421,10.31131687,198.13,198.12,0.03243577]
[1756741849226,7.47,198.13,198.12,0.03243577]
[1756741850022,10.31131687,198.14,198.12,0.03243577]
[1756741850420,7.47,198.14,198.12,0.03243577]
[1756741851123,51.56131687,198.17,198.12,0.03243577]
[1756741851323,7.47,198.13,198.12,0.03243577]
[1756741854625,4.5418,198.14,198.12,0.03243577]
[1756741854831,7.47,198.16,198.12,0.03243577]
[1756741855632,12.0115,198.16,198.12,0.03243577]
[1756741855835,4.5415,198.16,198.12,0.03243577]
[1756741856134,7.47,198.15,198.12,0.03243577]
[1756741857127,7.47,198.16,198.12,0.03243577]
[1756741857327,7.47,198.2,198.12,7.64243577]
[1756741857733,7.47,198.2,198.12,7.61]
[1756741858229,2.84131687,198.24,198.14,7.61]
[1756741858432,126.68,198.25,198.15,7.61]
[1756741858633,126.68,198.25,198.17,2.84131687]
[1756741858828,126.68,198.25,198.17,7.41434416]
[1756741859028,3.71950598,198.28,198.18,7.61]
[1756741859029,126.7,198.27,198.18,7.61]
[1756741859237,131.239,198.27,198.18,7.61]
[1756741860240,0.87818911,198.28,198.18,7.61]
[1756741860541,126.66,198.28,198.18,7.61]
[1756741861038,129.50131687,198.28,198.18,7.61]
[1756741861238,126.66,198.28,198.18,7.61]
[1756741861942,126.66,198.28,198.2,2.84131687]
[1756741862138,7.47,198.29,198.2,2.84131687]
[1756741862442,7.47,198.29,198.21,7.61]
[1756741862443,126.66,198.29,198.21,7.61]
[1756741862638,70.5509,198.43,198.28,10.45131687]
[1756741862841,7.47,198.41,198.28,10.45131687]
[1756741863147,12.0063,198.38,198.28,10.45131687]
[1756741863442,7.47,198.38,198.28,81.05211687]
[1756741863644,7.47,198.38,198.31,2.84131687]
[1756741863836,7.47,198.36,198.23,7.61]
[1756741864038,7.47,198.36,198.24,2.84131687]
[1756741864239,78.0427,198.36,198.28,0.03257885]
[1756741864542,7.47,198.3,198.28,0.03257885]
[1756741864848,134.41,198.29,198.28,0.03257885]
[1756741865541,134.91,198.29,198.18,7.61]
[1756741865741,2.84131687,198.26,198.18,7.61]
[1756741866041,10.31131687,198.29,198.18,7.61]
[1756741866242,126.98,198.28,198.18,7.61]
[1756741866747,126.98,198.28,198.21,7.61]
[1756741867342,126.96,198.31,198.23,2.84131687]
[1756741867540,126.96,198.31,198.24,7.61]
[1756741867944,0.03195424,198.29,198.23,2.84131687]
[1756741868146,0.03195424,198.29,198.24,8.21]
[1756741868346,0.03195424,198.29,198.26,2.84131687]
[1756741868644,0.03195424,198.29,198.27,8.21]
[1756741868944,0.03195424,198.29,198.25,2.84131687]
[1756741869352,0.03195424,198.29,198.22,2.84131687]
[1756741869649,0.03195424,198.29,198.23,8.21]
[1756741869845,127.0,198.34,198.23,8.21]
[1756741870152,127.0,198.34,198.24,4.5395]
[1756741870846,0.03302683,198.31,198.24,4.5395]
[1756741871149,7.45,198.3,198.18,8.21]
[1756741871542,7.45,198.3,198.19,4.55835345]
[1756741871745,7.45,198.3,198.2,8.21]
[1756741871952,7.45,198.3,198.22,4.5398]
[1756741872150,7.45,198.3,198.2,8.21]
[1756741872549,127.0,198.34,198.24,12.7495]
[1756741872750,127.0,198.34,198.24,8.21]
[1756741873650,127.0,198.34,198.24,12.7495]
[1756741874251,127.0,198.34,198.25,4.5391]
[1756741874854,127.0,198.34,198.24,8.21]
[1756741875049,127.0,198.34,198.26,8.21]
[1756741875250,0.03179729,198.31,198.24,4.55835345]
[1756741875451,0.03179729,198.31,198.26,4.5389]
[1756741875647,7.45,198.33,198.27,8.21]
[1756741876255,7.45,198.33,198.27,12.7486]
[1756741877057,7.45,198.33,198.27,8.21]
[1756741877953,7.45,198.33,198.19,8.21]
[1756741878358,0.03262388,198.28,198.19,8.21]
[1756741879555,0.03262388,198.28,198.15,4.55835345]
[1756741879556,21.55,198.27,198.12,4.55835345]
[1756741879762,7.45,198.26,198.13,8.21]
[1756741880263,12.00835345,198.26,198.13,8.21]
[1756741880561,4.55835345,198.23,198.13,8.21]
[1756741880859,7.45,198.22,198.07,8.21]
[1756741881760,0.03179688,198.16,198.07,8.21]
[1756741883457,7.48179688,198.16,198.07,8.21]
[1756741883863,7.48179688,198.16,198.02,8.21]
[1756741884365,7.45,198.16,198.02,8.21]
[1756741885364,0.03242333,198.11,198.02,8.21]
[1756741889666,0.03242333,198.11,198.04,8.21]
[1756741890070,14.7,198.15,198.04,8.21]
[1756741890266,7.45,198.14,198.04,8.21]
[1756741890466,0.03190487,198.09,198.04,8.21]
[1756741890666,0.03190487,198.09,198.0,8.21]
[1756741891063,7.45,198.11,198.0,8.21]
[1756741891461,0.03324499,198.06,198.0,8.21]
[1756741891666,0.03324499,198.06,198.0,4.55835345]
[1756741891863,0.03324499,198.06,198.01,8.21]
[1756741892063,0.03324499,198.06,198.0,4.55835345]
[1756741892268,0.03324499,198.06,198.02,8.21]
[1756741892571,0.03324499,198.06,197.98,8.21]
[1756741892764,7.45,198.12,197.98,8.21]
[1756741892963,0.03300448,198.04,197.98,8.21]
[1756741894664,0.03300448,198.04,198.0,4.55835345]
[1756741895165,0.03300448,198.04,198.01,8.21]
[1756741895363,0.03300448,198.04,198.0,4.55835345]
[1756741895571,0.03300448,198.04,198.01,8.21]
[1756741896462,0.03300448,198.04,197.99,2.85577347]
[1756741897764,0.03300448,198.04,198.0,7.81]
[1756741898473,0.03300448,198.04,197.99,2.85577347]
[1756741898773,0.03300448,198.04,198.0,7.81]
[1756741899072,0.03300448,198.04,197.99,2.85577347]
[1756741899267,0.03300448,198.04,198.0,7.81]
[1756741899666,0.03300448,198.04,198.03,7.81]
[1756741900068,40.04,198.15,198.03,8.31]
[1756741900268,40.04,198.15,198.0,2.8886621]
[1756741900269,40.04,198.15,198.06,10.66577347]
[1756741900968,7.96,198.15,198.06,10.66577347]
[1756741901163,7.96,198.15,198.06,7.81]
[1756741901373,7.96,198.15,198.09,0.0321246]
[1756741904879,10.81577347,198.1,198.09,0.0321246]
[1756741907581,7.96,198.1,198.09,0.0321246]
[1756741908780,10.81577347,198.1,198.09,0.0321246]
[1756741909180,10.81577347,198.1,197.98,10.66577347]
[1756741909181,7.96,198.09,197.98,7.81]
[1756741909386,111.73577347,198.1,197.98,7.81]
[1756741909387,10.81577347,198.06,197.98,7.81]
[1756741912081,27.79577347,198.09,197.98,10.66577347]
[1756741912282,27.79577347,198.09,197.99,7.81]
[1756741912283,2.85577347,198.09,197.99,7.81]
[1756741913687,7.96,198.08,197.99,7.81]
[1756741915688,10.81577347,198.08,197.99,7.81]
[1756741918890,2.85577347,198.07,197.99,7.81]
[1756741920491,66.4,198.1,198.0,2.85577347]
[1756741920492,69.25577347,198.1,198.0,2.85577347]
[1756741920685,2.85577347,198.07,197.99,7.81]
[1756741922593,2.85577347,198.07,197.93,10.66577347]
[1756741922594,7.96,198.06,197.93,10.66577347]
[1756741922791,2.85577347,198.04,197.94,7.81]
[1756741923192,2.85577347,198.04,197.94,10.66577347]
[1756741924583,10.81577347,198.03,197.94,7.81]
[1756741924786,7.96,198.03,197.94,7.81]
[1756741924992,2.85577347,198.04,197.94,7.81]
[1756741925294,10.81577347,198.07,197.97,7.81]
[1756741925791,10.81577347,198.07,197.98,2.85577347]
[1756741926994,10.81577347,198.11,197.99,7.81]
[1756741927188,52.29577347,198.11,197.99,7.81]
[1756741927588,7.96,198.07,197.99,7.81]
[1756741927993,2.85577347,198.09,197.99,7.81]
[1756741928293,7.9,198.08,197.99,7.81]
[1756741930293,2.85577347,198.06,197.95,7.59]
[1756741930498,7.9,198.05,197.95,7.59]
[1756741930993,2.85577347,198.06,197.95,7.59]
[1756741931192,2.85577347,198.08,197.95,7.59]
[1756741931393,7.9,198.07,197.95,7.59]
[1756741932497,7.9,198.07,197.98,7.59]
[1756741933890,21.74,198.1,198.01,7.59]
[1756741934096,7.9,198.07,197.97,2.85577347]
[1756741934291,7.9,198.07,197.96,7.59]
[1756741936294,2.85577347,198.05,197.96,7.59]
[1756741936494,7.9,198.04,197.96,7.59]
[1756741937596,10.75577347,198.08,197.96,7.59]
[1756741937800,22.63577347,198.08,197.96,7.59]
[1756741937999,0.03192131,198.02,197.96,7.59]
[1756741938401,0.03192131,198.02,197.96,12.1358]
[1756741939194,0.03192131,198.02,197.96,4.5458]
[1756741939400,0.03192131,198.02,197.97,7.59]
[1756741939597,0.03192131,198.02,197.96,4.5458]
[1756741939799,0.03192131,198.02,197.98,2.85577347]
[1756741940201,0.03192131,198.02,197.99,4.5451]
[1756741940406,0.03192131,198.02,198.0,7.59]
[1756741940699,0.03192131,198.02,197.95,4.5461]
[1756741940903,0.03192131,198.02,197.95,7.59]
[1756741941706,0.03192131,198.02,197.94,2.85577347]
[1756741941707,7.9,198.01,197.91,4.23551426]
[1756741941893,7.9,198.01,197.9,4.23551426]
[1756741942100,2.85577347,198.0,197.86,7.59]
[1756741942293,7.9,197.98,197.86,10.44577347]
[1756741942500,7.9,197.98,197.88,7.59]
[1756741943202,7.9,197.98,197.88,10.44577347]
[1756741943397,7.9,197.98,197.88,7.59]
[1756741943598,10.75577347,198.02,197.89,7.59]
[1756741943805,7.9,198.02,197.92,7.59]
[1756741944307,7.9,197.98,197.87,7.59]
[1756741944703,11.46,197.98,197.9,7.59]
[1756741944903,11.46,197.98,197.91,2.85577347]
[1756741945302,7.9,197.97,197.86,10.44577347]
[1756741945502,7.9,197.97,197.87,7.59]
[1756741945701,18.4,198.0,197.9,7.59]
[1756741945900,339.42,198.13,197.92,2.85577347]
[1756741945901,7.9,198.01,197.92,2.85577347]
[1756741946204,7.9,198.01,197.91,2.85577347]
[1756741946407,7.9,198.01,197.9,10.44577347]
[1756741946700,7.9,197.96,197.86,2.85577347]
[1756741946904,7.9,197.96,197.86,7.59]
[1756741947601,7.9,197.96,197.82,7.59]
[1756741947802,7.9,197.96,197.84,2.85577347]
[1756741948004,7.9,197.96,197.85,2.85577347]
[1756741948306,7.9,197.96,197.82,7.59]
[1756741948599,7.9,197.93,197.82,10.44577347]
[1756741948804,7.9,197.93,197.76,4.23551426]
[1756741948805,2.85577347,197.91,197.76,11.82551426]
[1756741949009,2.85577347,197.91,197.73,0.87968756]
[1756741949010,7.9,197.84,197.73,4.23551426]
[1756741949311,7.9,197.84,197.7,7.59]
[1756741949312,81.51447347,197.84,197.7,7.59]
[1756741949510,7.9,197.81,197.7,7.59]
[1756741950007,7.9,197.81,197.74,2.85577347]
[1756741950203,7.9,197.83,197.67,7.59]
[1756741950398,19.88,197.83,197.63,4.23551426]
[1756741950603,7.9,197.83,197.72,2.85577347]
[1756741950805,7.9,197.83,197.75,2.85577347]
[1756741951008,214.96177347,198.0,197.75,10.44577347]
[1756741951009,18.7,197.87,197.75,10.44577347]
[1756741951208,7.9,197.87,197.66,4.23551426]
[1756741951411,20.3,197.86,197.77,2.85577347]
[1756741951804,7.9,197.85,197.7,7.59]
[1756741952108,7.9,197.82,197.7,7.59]
[1756741952504,10.75577347,197.82,197.7,7.59]
[1756741952709,10.75577347,197.82,197.7,10.44577347]
[1756741952908,7.9,197.82,197.7,7.59]
[1756741953111,10.75577347,197.82,197.7,7.59]
[1756741953305,7.9,197.82,197.7,7.59]
[1756741953609,7.9,197.82,197.6,15.73577347]
[1756741953610,7.9,197.82,197.73,7.59]
[1756741953907,7.9,197.87,197.75,2.85577347]
[1756741954111,7.9,197.98,197.73,7.59]
[1756741954413,7.9,197.98,197.83,7.59]
[1756741954613,7.9,197.98,197.9,2.85577347]
[1756741954908,2.85577347,197.93,197.81,10.44577347]
[1756741955107,2.85577347,197.9,197.79,2.85577347]
[1756741955306,2.85577347,197.9,197.8,10.44577347]
[1756741955506,143.45577347,197.97,197.84,7.59]
[1756741955708,7.9,197.96,197.84,10.44577347]
[1756741955903,7.9,197.89,197.77,2.85577347]
[1756741956410,7.9,197.84,197.72,2.85577347]
[1756741956604,2.85577347,197.82,197.69,7.59]
[1756741956813,2.85577347,197.82,197.69,10.44577347]
[1756741957005,58.34,197.85,197.75,2.85577347]
[1756741957519,339.64,197.91,197.81,2.85577347]
[1756741958006,7.59,197.9,197.73,78.358]
[1756741958210,7.59,197.9,197.75,4.57837329]
[1756741958211,70.7421,197.89,197.75,4.57837329]
[1756741958408,70.7535,197.86,197.73,7.56]
[1756741958619,82.903,197.83,197.73,7.56]
[1756741958916,70.7702,197.81,197.69,4.57837329]
[1756741959107,7.59,197.83,197.69,4.57837329]
[1756741959311,0.03183914,197.8,197.69,4.57837329]
[1756741959512,0.03183914,197.8,197.75,4.5507]
[1756741959715,0.03183914,197.8,197.79,7.56]
[1756741959913,128.98,197.9,197.79,7.56]
[1756741960616,144.56,197.97,197.84,4.57837329]
[1756741960816,144.56,197.97,197.87,4.57837329]
[1756741961113,4.57837329,198.02,197.87,4.57837329]
[1756741961410,8.46943191,198.01,197.87,4.57837329]
[1756741961613,8.46943191,198.01,197.84,12.1086]
[1756741961614,4.57837329,197.99,197.84,12.13837329]
[1756741961916,4.57837329,197.96,197.92,0.03208301]
[1756741962112,7.59,197.95,197.79,7.56]
[1756741962319,7.59,197.92,197.79,7.56]
[1756741962613,4.57837329,197.9,197.74,7.56]
[1756741962819,7.59,197.86,197.74,7.56]
[1756741963512,7.59,197.86,197.74,12.13837329]
[1756741963814,0.03212685,197.82,197.74,7.56]
[1756741965814,7.59,197.81,197.67,4.5525]
[1756741966019,7.59,197.81,197.67,4.57837329]
[1756741966218,7.59,197.81,197.68,7.56]
[1756741966421,12.16837329,197.86,197.7,4.57837329]
[1756741966619,144.42,197.85,197.7,4.57837329]
[1756741966821,7.59,197.86,197.74,7.56]
[1756741967021,7.59,197.86,197.76,4.57837329]
[1756741967211,339.7,197.89,197.77,7.56]
[1756741967414,12.16837329,197.96,197.82,4.57837329]
[1756741967612,7.59,197.96,197.85,4.57837329]
[1756741967819,7.59,197.96,197.84,70.7594]
[1756741967820,340.59943191,198.01,197.88,7.56]
[1756741968016,340.59943191,198.01,197.91,7.56]
[1756741968219,7.59,198.07,197.94,7.56]
[1756741968412,0.03215897,197.98,197.93,4.57837329]
[1756741968613,0.03215897,197.98,197.94,7.56]
[1756741968924,7.59,198.07,197.94,7.56]
[1756741969224,8.4691653,198.07,197.94,7.56]
[1756741969617,4.57837329,198.06,197.94,7.56]
[1756741970123,4.57837329,198.03,197.82,18.12]
[1756741970320,7.59,198.05,197.91,7.56]
[1756741970919,7.59,198.03,197.87,4.57837329]
[1756741971423,0.03250792,197.97,197.87,4.57837329]
[1756741972423,0.03250792,197.97,197.84,4.57837329]
[1756741972618,7.59,197.96,197.83,7.56]
[1756741973325,4.57837329,197.95,197.83,7.56]
[1756741973726,7.59,197.94,197.78,7.56]
[1756741974828,4.5479,197.88,197.78,12.1102]
[1756741975027,7.59,197.94,197.77,4.57837329]
[1756741975225,7.59,197.94,197.81,4.57837329]
[1756741975529,78.2952,198.0,197.85,7.56]
[1756741975728,78.2952,198.0,197.87,4.57837329]
[1756741976631,7.59,197.98,197.85,7.56]
[1756741977026,7.59,197.98,197.87,4.57837329]
[1756741977823,0.03202142,197.94,197.87,4.57837329]
[1756741978627,0.03202142,197.94,197.88,7.56]
[1756741978929,0.03202142,197.94,197.9,4.57837329]
[1756741979320,143.54,198.03,197.91,4.5472]
[1756741979525,143.54,198.03,197.91,7.56]
[1756741980124,7.59,198.04,197.93,4.57837329]
[1756741980330,7.59,198.09,197.95,4.5461]
[1756741980623,339.62,198.11,198.0,7.56]
[1756741980829,7.59,198.14,198.0,7.56]
[1756741981436,7.59,198.14,198.02,4.57837329]
[1756741981630,12.16837329,198.2,198.06,7.56]
[1756741982034,7.59,198.2,198.06,7.56]
[1756741982729,7.59,198.2,198.08,4.5433]
[1756741983129,7.59,198.2,198.06,7.56]
[1756741984134,339.6,198.23,198.1,7.56]
[1756741984541,339.6,198.23,198.1,12.1028]
[1756741984931,339.6,198.23,198.1,7.56]
[1756741985137,7.59,198.22,198.1,7.56]
[1756741987237,7.59,198.22,198.1,12.1028]
[1756741987638,7.59,198.22,198.1,7.56]
[1756741990041,7.59,198.22,198.05,7.41928542]
[1756741990243,7.7,198.22,198.06,7.44]
[1756741990644,142.1,198.21,198.06,11.9837]
[1756741990845,7.7,198.2,198.06,7.44]
[1756741991043,7.7,198.2,198.02,7.44]
[1756741991545,7.7,198.17,198.02,7.44]
[1756741992442,7.41928542,198.18,197.97,14.85928542]
[1756741992847,7.7,198.17,197.97,14.85928542]
[1756741993944,7.41928542,198.18,197.97,14.85928542]
[1756741994143,7.7,198.17,197.97,14.85928542]
[1756741994345,7.41928542,198.18,197.97,14.85928542]
[1756741994551,149.3,198.17,197.98,7.44]
[1756741994848,141.54,198.16,197.98,7.44]
[1756741995047,7.7,198.15,197.98,7.44]
[1756741995949,89.14,198.14,197.98,7.44]
[1756741996150,89.14,198.14,197.91,9.46]
[1756741996151,89.14,198.14,198.02,7.44]
[1756741996349,89.14,198.14,198.03,4.5442]
[1756741997250,7.7,198.13,198.02,7.44]
[1756741997646,7.7,198.2,198.04,2.81]
[1756741997848,116.52,198.18,198.04,2.81]
[1756741998046,7.7,198.17,197.9,339.6]
[1756741998244,7.7,198.17,197.95,7.41928542]
[1756741998650,83.42,198.16,197.99,7.41928542]
[1756741998950,83.42,198.16,198.02,4.5447]
[1756741999446,15.11928542,198.15,197.95,7.41928542]
[1756741999851,15.11928542,198.15,197.96,7.44]
[1756742000052,79.08,198.14,197.96,7.44]
[1756742000249,79.08,198.14,197.99,7.41928542]
[1756742000455,7.7,198.15,198.0,7.44]
[1756742000652,7.7,198.15,198.04,7.44]
[1756742002945,7.7,198.15,197.91,62.0]
[1756742002946,12.26732035,198.16,198.0,4.56732035]
[1756742003251,12.26732035,198.16,198.01,7.44]
[1756742004654,4.56732035,198.13,198.01,7.44]
[1756742004954,4.56732035,198.1,197.96,7.44]
[1756742005155,7.7,198.09,197.96,7.44]
[1756742005349,62.84,198.09,197.96,7.44]
[1756742005756,7.7,198.09,197.96,7.44]
[1756742005953,7.7,198.09,197.99,7.44]
[1756742006158,0.03204741,198.04,198.01,4.56732035]
[1756742006453,0.03204741,198.04,198.02,7.44]
[1756742006658,7.7,198.1,197.98,7.44]
[1756742007958,7.7,198.1,197.99,4.56732035]
[1756742008151,7.7,198.1,198.0,7.44]
[1756742008356,7.7,198.1,198.0,11.985]
[1756742008557,7.7,198.1,198.0,7.44]
[1756742009645,7.7,198.1,197.95,7.44]
[1756742009854,7.7,198.08,197.95,7.44]
[1756742010456,7.7,198.08,197.96,4.56732035]
[1756742011161,7.7,198.08,197.97,4.5457]
[1756742011352,7.7,198.08,197.96,4.56732035]
[1756742011552,0.03205559,198.04,197.96,4.56732035]
[1756742011754,0.03205559,198.04,197.97,7.44]
[1756742012358,0.03205559,198.04,198.03,7.44]